bitfinex-derivatives/quotes_ETHF0:USTF0_20240920
["timestamp","ask_amount","ask_price","bid_price","bid_amount"]
[1726819312133,3.59776,2564.0,2563.7,0.7569]
[1726819312319,0.38998,2563.9,2563.7,0.7569]
[1726819312520,4.56539,2564.0,2563.6,0.3785]
[1726819312730,3.5978,2563.7,2563.4,0.7822]
[1726819312926,0.39002,2563.6,2563.4,0.7822]
[1726819313136,3.2078,2563.7,2563.4,0.7822]
[1726819313823,0.39001,2563.7,2563.4,0.7822]
[1726819315333,3.59781,2563.7,2563.4,0.7822]
[1726819317835,0.39002,2563.6,2563.3,0.374]
[1726819318238,0.39003,2563.5,2563.3,0.374]
[1726819318837,0.39002,2563.6,2563.3,0.374]
[1726819319033,0.39002,2563.6,2563.3,0.76406]
[1726819319337,3.59781,2563.7,2563.3,0.76405]
[1726819319538,3.2078,2563.7,2563.3,0.76405]
[1726819319938,3.59781,2563.7,2563.3,0.76405]
[1726819320138,3.59781,2563.7,2563.3,3.5818]
[1726819320139,3.2078,2563.7,2563.3,3.5818]
[1726819320341,0.38998,2563.9,2563.3,0.374]
[1726819320636,0.38998,2563.9,2563.5,0.39001]
[1726819321037,0.38999,2563.8,2563.4,0.39004]
[1726819321237,3.5905,2564.0,2563.4,0.39004]
[1726819321539,3.2078,2563.7,2563.3,0.76405]
[1726819321732,3.2078,2563.7,2563.4,0.39004]
[1726819321933,3.2078,2563.7,2563.3,0.374]
[1726819322238,0.39003,2563.5,2563.3,0.374]
[1726819322439,0.39002,2563.6,2563.3,0.374]
[1726819323538,3.2078,2563.7,2563.2,0.4016]
[1726819323742,0.39009,2563.1,2562.9,0.3799]
[1726819324034,3.2078,2563.4,2562.9,0.3799]
[1726819324235,3.2078,2563.1,2562.8,0.775]
[1726819324437,3.2078,2563.1,2562.4,0.3799]
[1726819324633,3.2078,2563.1,2562.4,1.1549]
[1726819325242,3.2078,2563.1,2562.4,1.54509]
[1726819325538,0.39012,2562.9,2562.4,1.54509]
[1726819325738,0.39011,2563.0,2562.4,1.54509]
[1726819325932,0.39012,2562.9,2562.4,1.1549]
[1726819326339,3.2078,2562.8,2562.4,1.1549]
[1726819326836,3.59798,2562.5,2562.4,0.772]
[1726819327044,3.2078,2562.5,2562.0,0.79025]
[1726819327344,3.59798,2562.5,2562.0,0.79025]
[1726819327639,3.59798,2562.5,2562.0,0.79026]
[1726819329041,3.2078,2562.5,2562.0,0.4]
[1726819329436,0.39021,2562.3,2562.0,0.4]
[1726819329638,3.2078,2562.2,2561.9,0.7571]
[1726819332043,3.59803,2562.2,2561.9,0.7571]
[1726819332746,3.2078,2562.2,2561.9,0.7571]
[1726819333750,3.59803,2562.2,2561.9,0.7571]
[1726819334853,3.2078,2562.2,2561.9,0.7571]
[1726819336457,3.2078,2562.2,2562.0,0.39025]
[1726819336652,3.2078,2562.5,2562.0,0.39025]
[1726819336853,3.2078,2562.5,2561.9,3.9649]
[1726819337053,3.2078,2562.8,2562.3,3.2078]
[1726819337360,3.2078,2563.4,2562.8,0.39012]
[1726819337654,3.2078,2563.7,2562.9,0.8073]
[1726819337854,0.39002,2563.6,2563.0,0.8023]
[1726819338057,3.2078,2563.7,2563.0,0.4122]
[1726819338258,3.2078,2563.3,2563.0,0.4122]
[1726819338757,3.59786,2563.3,2563.0,0.4122]
[1726819340451,3.2078,2563.3,2563.0,0.4122]
[1726819340759,3.59786,2563.3,2563.0,0.4122]
[1726819341057,3.2078,2563.3,2563.0,0.4122]
[1726819341262,3.59786,2563.3,2563.0,0.4122]
[1726819341858,3.2078,2563.3,2563.0,0.4122]
[1726819342260,3.59787,2563.3,2563.0,0.4122]
[1726819342461,3.2078,2563.3,2562.5,4.58817]
[1726819342662,3.5979,2563.0,2562.6,1.1589]
[1726819342958,3.2078,2563.0,2562.6,1.1589]
[1726819343257,3.59791,2563.0,2562.6,1.1589]
[1726819343763,3.2078,2563.0,2562.6,1.54906]
[1726819344261,3.59791,2563.0,2562.6,1.1589]
[1726819345060,3.5979,2563.0,2562.6,1.1589]
[1726819346365,3.2078,2563.0,2562.6,1.54906]
[1726819346560,0.3901,2563.0,2562.6,1.1589]
[1726819346765,0.39009,2563.1,2562.6,1.54906]
[1726819346966,3.59787,2563.3,2562.6,1.1589]
[1726819347159,0.39008,2563.2,2562.7,0.39014]
[1726819347360,3.59786,2563.3,2562.8,0.39013]
[1726819347662,0.39007,2563.2,2562.6,1.1589]
[1726819347857,0.39007,2563.2,2562.7,0.39015]
[1726819348169,0.39007,2563.2,2562.8,0.39013]
[1726819348365,3.2078,2564.2,2563.1,3.2078]
[1726819348564,3.338,2564.9,2562.8,7.61140085]
[1726819348565,0.3915,2564.4,2563.7,3.2078]
[1726819348757,0.3915,2564.4,2563.7,6.5458]
[1726819349071,0.3915,2564.4,2564.1,0.38993]
[1726819349469,0.3915,2564.4,2564.0,0.38994]
[1726819350371,0.3915,2564.4,2563.8,0.38997]
[1726819350667,0.38991,2564.3,2563.8,0.38998]
[1726819350864,0.7814,2564.4,2563.9,0.38997]
[1726819351071,0.3915,2564.4,2563.7,6.5448]
[1726819351271,0.78139,2564.4,2563.9,0.38996]
[1726819351467,0.3915,2564.4,2563.8,1.2093]
[1726819351674,0.3915,2564.4,2563.9,0.38997]
[1726819351866,0.3915,2564.4,2563.8,1.2093]
[1726819352272,0.3915,2564.4,2564.0,0.38995]
[1726819352872,0.3915,2564.4,2564.1,0.38993]
[1726819353074,0.3915,2564.4,2564.0,0.38994]
[1726819353875,3.2078,2565.3,2564.3,3.2078]
[1726819354079,3.2078,2565.3,2564.9,0.38981]
[1726819354280,3.2078,2565.3,2564.6,3.2078]
[1726819354475,3.2078,2565.3,2564.8,0.38982]
[1726819355479,3.2078,2565.3,2564.6,3.2078]
[1726819355776,0.79028,2565.2,2564.6,6.5528]
[1726819356276,0.4005,2565.2,2564.6,6.94265]
[1726819357179,0.79027,2565.2,2564.6,3.2078]
[1726819357480,0.79027,2565.2,2564.6,6.94165]
[1726819357481,0.4005,2565.2,2564.6,6.94165]
[1726819358082,0.79027,2565.2,2564.6,6.94165]
[1726819358378,0.79028,2565.2,2564.6,6.5518]
[1726819358579,0.79028,2565.2,2564.6,6.94166]
[1726819359486,0.4005,2565.2,2564.6,3.2078]
[1726819359685,0.38979,2565.1,2564.6,3.2078]
[1726819359976,0.3843,2565.6,2564.9,3.2078]
[1726819360185,0.3843,2565.6,2565.2,0.38976]
[1726819360377,0.4062,2565.7,2565.2,0.38976]
[1726819360378,0.4062,2565.7,2565.2,3.2078]
[1726819360683,0.4062,2565.7,2565.2,3.59756]
[1726819360878,0.4062,2565.7,2565.2,0.38976]
[1726819361077,0.4062,2565.7,2565.1,3.344]
[1726819361375,0.4062,2565.7,2565.3,0.38975]
[1726819361576,3.2078,2566.0,2565.5,3.59752]
[1726819361984,3.2078,2566.0,2565.7,0.38968]
[1726819362283,3.59746,2566.0,2565.6,0.7621]
[1726819362582,0.38966,2565.9,2565.4,3.343]
[1726819362978,0.38966,2566.0,2565.5,3.2078]
[1726819363178,0.38966,2566.0,2565.4,3.343]
[1726819363577,3.2078,2565.9,2565.4,3.343]
[1726819363776,3.59747,2565.9,2565.4,3.343]
[1726819364182,3.2078,2565.9,2565.4,3.73274]
[1726819365186,0.38966,2566.0,2565.4,3.73274]
[1726819365479,0.78334,2566.1,2565.5,0.38972]
[1726819365679,0.3937,2566.1,2565.5,3.2078]
[1726819366080,0.3937,2566.1,2565.6,0.3897]
[1726819366477,0.78335,2566.1,2565.5,3.2078]
[1726819366681,0.3937,2566.1,2565.4,3.2078]
[1726819367376,0.38966,2566.0,2565.4,3.59754]
[1726819367579,0.38966,2566.0,2565.4,3.2078]
[1726819367782,3.59749,2565.8,2565.2,0.7621]
[1726819368280,3.59749,2565.8,2565.2,3.9699]
[1726819368480,3.59749,2565.8,2565.2,4.35967]
[1726819368690,3.59749,2565.8,2565.2,3.9699]
[1726819368875,3.2078,2565.8,2565.2,3.9699]
[1726819369082,3.2078,2565.8,2565.2,0.7621]
[1726819369283,0.38972,2565.6,2565.2,0.7621]
[1726819369978,0.78092,2565.5,2565.2,0.7621]
[1726819370178,1.18242,2565.5,2565.2,0.7621]
[1726819370490,1.18242,2565.5,2565.0,0.387]
[1726819371084,0.7927,2565.5,2565.0,0.387]
[1726819372291,0.7927,2565.5,2564.8,3.2078]
[1726819372586,0.38982,2564.9,2564.6,0.3917]
[1726819372786,0.3942,2564.8,2564.4,0.7882]
[1726819373184,0.78404,2564.8,2564.4,0.7882]
[1726819373382,0.38985,2564.7,2564.4,0.7882]
[1726819373583,0.38985,2564.7,2564.4,0.4023]
[1726819374384,0.3942,2564.8,2564.2,3.2078]
[1726819374581,0.38987,2564.6,2564.1,4.198]
[1726819375691,0.3899,2564.4,2564.1,4.198]
[1726819376589,0.38988,2564.5,2564.1,4.198]
[1726819377890,0.38988,2564.5,2563.9,4.37806]
[1726819379589,0.38987,2564.6,2563.9,4.37806]
[1726819379792,3.2078,2564.7,2563.9,4.37806]
[1726819379990,0.38987,2564.6,2563.9,4.37806]
[1726819380186,3.2078,2564.7,2563.9,3.9881]
[1726819380390,3.2078,2564.7,2564.1,0.38993]
[1726819380594,3.59765,2564.7,2564.1,0.38993]
[1726819380795,3.2078,2564.7,2564.2,0.38992]
[1726819381294,0.3942,2564.8,2564.3,0.38991]
[1726819381488,0.3942,2564.8,2563.9,7.3311]
[1726819381489,0.78403,2564.8,2564.4,0.3901]
[1726819381988,0.3942,2564.8,2564.4,0.3901]
[1726819382192,0.3942,2564.8,2564.0,0.38994]
[1726819382193,0.38987,2564.6,2564.0,0.38994]
[1726819382487,3.2078,2565.1,2564.0,0.3901]
[1726819382688,3.2078,2566.9,2564.9,3.2078]
[1726819382894,3.2078,2566.6,2565.4,3.2078]
[1726819383194,0.38964,2566.1,2565.5,3.343]
[1726819383401,3.2078,2566.2,2565.4,3.2078]
[1726819383694,0.38967,2565.9,2565.4,3.2078]
[1726819383893,0.38968,2565.8,2565.4,3.2078]
[1726819384086,0.38966,2565.9,2565.4,3.2078]
[1726819384292,3.5908,2565.9,2565.0,0.3893]
[1726819384487,0.38972,2565.5,2565.0,0.3893]
[1726819384797,0.38974,2565.4,2565.0,0.3893]
[1726819385491,0.38974,2565.4,2564.9,3.2078]
[1726819385792,0.38976,2565.3,2564.9,3.2078]
[1726819386299,0.38977,2565.2,2564.9,3.2078]
[1726819386489,0.38976,2565.3,2564.7,0.38983]
[1726819386793,0.78497,2565.2,2564.9,3.2078]
[1726819386991,0.3952,2565.2,2564.9,3.2078]
[1726819388298,3.2078,2565.0,2563.8,3.2078]
[1726819388495,3.2078,2564.6,2564.1,0.4087]
[1726819388804,3.2078,2564.9,2564.1,0.4087]
[1726819389096,0.38987,2564.6,2564.1,3.6165]
[1726819389391,3.2078,2564.9,2564.4,0.38988]
[1726819389591,0.3952,2565.2,2564.1,0.4087]
[1726819389789,0.78498,2565.2,2564.5,0.38987]
[1726819389993,0.3952,2565.2,2564.6,0.8198]
[1726819390200,0.3952,2565.2,2564.7,4.00675]
[1726819390404,0.3952,2565.2,2564.7,3.6169]
[1726819391799,0.78497,2565.2,2564.7,3.6169]
[1726819392300,0.3952,2565.2,2564.7,0.4091]
[1726819392597,0.78497,2565.2,2564.7,3.6169]
[1726819394302,0.38984,2564.8,2564.3,3.2078]
[1726819394497,0.38984,2564.8,2564.3,0.7989]
[1726819394801,3.2078,2565.0,2564.4,0.38988]
[1726819394996,3.2078,2565.0,2564.3,0.409]
[1726819394997,0.38982,2564.9,2564.5,0.4077]
[1726819395300,3.2078,2564.6,2563.6,7.4058]
[1726819395601,3.2078,2564.3,2563.9,0.3715]
[1726819395797,0.38992,2564.2,2563.9,0.3715]
[1726819396102,3.59772,2564.3,2563.9,0.3715]
[1726819396596,0.38993,2564.2,2563.9,0.3715]
[1726819396991,3.59772,2564.3,2563.9,0.3715]
[1726819397396,3.2078,2564.3,2563.3,3.2078]
[1726819397698,1.357,2564.5,2563.0,0.18126004]
[1726819397699,0.97493,2563.9,2563.1,0.7756]
[1726819397900,0.39003,2563.5,2563.1,0.7756]
[1726819398097,0.39007,2563.3,2563.1,0.3715]
[1726819398598,0.97504,2563.6,2563.1,0.3715]
[1726819398799,3.2078,2563.2,2563.1,0.3715]
[1726819399000,3.2078,2563.2,2562.9,0.4072]
[1726819399205,3.59788,2563.2,2562.9,0.4072]
[1726819399503,3.2078,2563.2,2562.9,0.4072]
[1726819399698,3.2078,2563.5,2562.9,0.4072]
[1726819400406,0.39008,2563.2,2562.9,0.4072]
[1726819400799,3.2078,2563.5,2562.9,0.4072]
[1726819401005,0.39006,2563.3,2563.0,0.3752]
[1726819401406,3.59786,2563.3,2563.0,0.3752]
[1726819401808,0.39006,2563.3,2563.0,0.3752]
[1726819402002,3.2078,2563.1,2562.3,3.2078]
[1726819402206,0.39012,2563.0,2562.2,3.607]
[1726819402402,3.5979,2563.1,2562.4,0.39018]
[1726819402602,0.39011,2563.0,2562.4,0.39018]
[1726819402911,3.5979,2563.1,2562.5,3.59797]
[1726819403206,3.2078,2563.1,2562.5,3.2078]
[1726819403406,3.2078,2563.1,2562.4,0.39019]
[1726819403608,0.39011,2563.0,2562.4,0.39019]
[1726819404209,3.8332,2563.2,2562.2,3.607]
[1726819404413,0.39011,2563.0,2562.5,3.2078]
[1726819404609,3.2078,2562.8,2562.2,3.99722]
[1726819404806,0.39015,2562.7,2562.2,3.607]
[1726819405007,3.59795,2562.8,2562.2,3.607]
[1726819405810,0.39017,2562.6,2562.2,0.3992]
[1726819406212,0.3902,2562.4,2561.5,3.2078]
[1726819406402,3.5836,2562.5,2561.5,3.2078]
[1726819406602,3.429,2562.4,2561.7,0.3903]
[1726819406811,0.39024,2562.2,2561.6,0.39031]
[1726819407010,0.39028,2561.9,2561.2,3.59818]
[1726819407207,0.3735,2562.1,2561.3,0.39036]
[1726819407405,0.39026,2562.0,2561.3,0.39036]
[1726819407606,0.3735,2562.1,2561.2,3.2078]
[1726819407910,0.3735,2562.1,2561.5,3.2078]
[1726819408112,0.76375,2562.1,2561.5,3.2078]
[1726819408312,0.39026,2562.0,2561.5,3.2078]
[1726819409000,0.39026,2562.0,2561.3,0.79026]
[1726819409200,0.39026,2562.0,2561.4,3.2078]
[1726819409516,0.76375,2562.1,2561.4,3.59814]
[1726819409814,0.39026,2562.0,2561.4,3.2078]
[1726819410713,0.39026,2562.0,2561.3,0.79025]
[1726819410913,0.39026,2562.0,2561.4,0.4016]
[1726819411110,3.2078,2562.2,2561.5,3.2078]
[1726819411513,0.39021,2562.3,2561.8,3.2078]
[1726819411814,3.5836,2562.5,2561.9,0.4118]
[1726819412009,0.39022,2562.3,2561.9,0.4118]
[1726819412213,7.111,2562.2,2561.2,3.2078]
[1726819412515,6.6378,2562.2,2561.4,0.4118]
[1726819412812,3.2078,2561.6,2561.0,0.3904]
[1726819413116,3.59813,2561.6,2561.0,0.4118]
[1726819413315,0.39033,2561.5,2561.0,0.4118]
[1726819413611,3.2078,2561.6,2561.0,0.4118]
[1726819413808,0.39035,2561.4,2561.0,0.4118]
[1726819414009,0.39037,2561.3,2561.0,0.4118]
[1726819414203,0.39036,2561.4,2561.0,0.4118]
[1726819414817,3.2078,2561.6,2561.0,0.4118]
[1726819415618,0.39037,2561.3,2561.0,0.4118]
[1726819415819,0.39042,2560.9,2560.8,3.2078]
[1726819416019,0.39043,2560.9,2560.6,3.2078]
[1726819416211,0.3829,2561.1,2560.6,3.2078]
[1726819416412,3.2078,2561.0,2560.3,3.2078]
[1726819416612,3.59827,2560.7,2560.1,3.2078]
[1726819416818,0.39048,2560.6,2560.5,3.2078]
[1726819417119,0.3829,2561.1,2560.5,3.2078]
[1726819417312,0.39042,2561.0,2560.5,3.2078]
[1726819417517,0.3829,2561.1,2560.5,3.2078]
[1726819417716,3.9842,2561.7,2560.8,3.2078]
[1726819418019,0.39042,2561.0,2560.8,3.2078]
[1726819418218,3.2078,2561.4,2560.8,3.2078]
[1726819418416,0.3904,2561.1,2560.8,3.2078]
[1726819418616,7.1126,2561.4,2560.8,3.2078]
[1726819418815,0.39041,2561.0,2560.8,3.2078]
[1726819419218,4.29521,2561.0,2560.8,3.2078]
[1726819419419,0.39042,2560.9,2560.5,3.2078]
[1726819419621,0.39042,2561.0,2560.5,3.2078]
[1726819420214,0.3904,2561.1,2560.5,3.59828]
[1726819420415,0.39042,2561.0,2560.5,3.2078]
[1726819420714,0.39038,2561.2,2560.8,3.2078]
[1726819420919,0.39038,2561.3,2560.8,3.2078]
[1726819421416,3.2078,2561.4,2560.8,3.2078]
[1726819421621,0.39032,2561.6,2561.0,0.39041]
[1726819421817,3.9842,2561.7,2560.9,1.1997]
[1726819422023,0.7764,2561.7,2560.9,1.1997]
[1726819422220,1.1667,2561.7,2561.1,3.2078]
[1726819422522,1.1667,2561.7,2561.3,3.2078]
[1726819422918,1.1667,2561.7,2560.6,3.578]
[1726819422919,3.2078,2561.4,2560.6,3.2078]
[1726819423222,3.2078,2561.0,2560.6,3.2078]
[1726819423522,3.59821,2561.0,2560.7,0.3812]
[1726819423723,3.2078,2561.0,2560.7,0.3812]
[1726819423925,7.1126,2561.0,2560.7,0.3812]
[1726819424219,0.39043,2560.9,2560.7,0.3812]
[1726819424416,7.50302,2561.0,2560.7,0.3812]
[1726819424612,0.39045,2560.7,2560.6,3.2078]
[1726819425027,10.29605,2560.7,2560.6,3.2078]
[1726819426521,1.36677,2560.4,2560.3,3.2078]
[1726819426721,0.405,2560.9,2560.3,2.7558]
[1726819427022,0.39051,2560.4,2559.9,0.39057]
[1726819427223,3.579,2560.6,2559.8,3.5922]
[1726819427526,3.2078,2560.8,2560.1,0.39054]
[1726819427721,0.39047,2560.7,2560.2,3.2078]
[1726819427921,0.39047,2560.7,2560.2,3.59832]
[1726819428121,0.39047,2560.6,2560.2,3.59832]
[1726819428313,0.39047,2560.6,2560.2,3.2078]
[1726819428514,0.39047,2560.6,2560.2,3.59833]
[1726819428824,3.2078,2560.8,2560.2,3.2078]
[1726819429021,0.39046,2560.7,2560.2,3.2078]
[1726819429224,0.39046,2560.7,2560.2,3.59832]
[1726819429525,3.59825,2560.8,2560.3,0.39051]
[1726819429724,3.2078,2560.8,2560.2,3.2078]
[1726819429922,3.2078,2560.8,2560.6,0.39046]
[1726819430124,3.5982,2561.1,2560.7,0.3735]
[1726819430421,3.5982,2561.1,2560.7,0.7453]
[1726819430626,3.5982,2561.1,2560.2,3.2078]
[1726819430627,3.9048,2561.0,2560.2,3.2078]
[1726819430820,3.2078,2560.8,2560.5,0.39048]
[1726819431321,3.2078,2560.8,2560.5,0.39047]
[1726819431523,3.9056,2560.8,2560.5,0.39047]
[1726819431833,3.9056,2560.8,2559.7,3.2078]
[1726819431834,3.9056,2560.7,2559.7,3.2078]
[1726819432127,3.2078,2560.3,2559.9,0.39057]
[1726819432421,3.2078,2560.3,2559.7,3.9774]
[1726819432926,3.2078,2560.3,2560.1,0.39054]
[1726819433530,3.2078,2560.3,2560.0,0.39055]
[1726819434724,4.29694,2560.2,2559.4,3.2078]
[1726819434925,3.2078,2560.0,2559.5,0.7652]
[1726819435123,0.39055,2560.1,2559.6,0.39062]
[1726819435428,3.2078,2560.3,2559.8,0.39058]
[1726819435623,3.59832,2560.3,2559.7,0.3906]
[1726819435927,3.2078,2560.0,2559.7,0.3906]
[1726819436526,3.2078,2560.1,2559.7,0.3906]
[1726819437022,0.39053,2560.2,2559.5,0.7652]
[1726819437226,3.2078,2560.0,2559.5,0.7652]
[1726819437525,3.2078,2560.0,2559.6,0.39061]
[1726819437824,3.2078,2560.0,2559.7,0.39061]
[1726819438421,3.9064,2560.0,2559.5,0.3981]
[1726819438728,3.2078,2560.0,2559.7,0.39061]
[1726819438924,3.2078,2560.0,2559.5,0.3981]
[1726819439121,3.2078,2560.0,2559.3,3.2078]
[1726819439122,3.9064,2559.9,2559.3,3.2078]
[1726819439325,3.2078,2560.0,2559.3,3.2078]
[1726819439326,3.59837,2560.0,2559.3,3.2078]
[1726819439526,3.2078,2559.7,2559.3,3.2078]
[1726819439831,3.2078,2559.8,2559.5,0.39063]
[1726819440028,3.2078,2559.8,2559.6,0.3981]
[1726819440229,3.59835,2560.1,2559.6,0.3981]
[1726819440529,3.2078,2560.1,2559.6,0.78872]
[1726819440732,3.59835,2560.1,2559.7,0.3884]
[1726819440927,3.2078,2560.1,2559.7,0.3884]
[1726819441329,3.59835,2560.1,2559.7,0.3884]
[1726819441630,3.2078,2560.1,2559.7,0.779]
[1726819442132,0.97615,2560.7,2559.7,0.779]
[1726819442133,3.2078,2560.4,2559.7,3.5962]
[1726819442329,3.2078,2560.4,2559.8,0.3891]
[1726819442629,3.2078,2560.8,2560.7,0.39045]
[1726819442831,0.39034,2561.5,2560.9,0.39041]
[1726819443028,3.2078,2561.0,2560.4,3.59829]
[1726819443230,0.39043,2560.9,2560.1,3.2078]
[1726819443426,3.2078,2561.2,2560.4,0.39049]
[1726819443723,0.39043,2560.9,2560.4,3.2078]
[1726819444033,0.39042,2560.9,2560.4,3.2078]
[1726819444233,0.39041,2561.0,2560.4,3.2078]
[1726819444531,0.39043,2560.9,2560.4,3.2078]
[1726819445236,3.2078,2560.8,2560.3,0.3905]
[1726819445436,3.2078,2560.7,2560.2,0.39053]
[1726819445622,3.2078,2561.1,2560.0,3.2078]
[1726819445827,3.2078,2561.1,2560.3,3.2078]
[1726819446032,4.1839,2560.9,2559.9,4.36047]
[1726819446336,4.1839,2560.9,2560.1,0.39054]
[1726819446337,3.59828,2560.6,2560.1,0.39054]
[1726819446527,3.59828,2560.6,2560.0,0.39055]
[1726819446727,0.39045,2560.8,2560.2,0.39052]
[1726819447428,3.2078,2560.9,2560.2,3.2078]
[1726819447429,3.59823,2560.9,2560.2,3.2078]
[1726819447628,3.2078,2560.9,2560.5,0.39048]
[1726819447833,0.3904,2561.1,2560.6,0.786]
[1726819448035,3.6102,2561.3,2560.6,0.786]
[1726819448335,0.39038,2561.2,2560.7,0.39044]
[1726819448532,3.6102,2561.3,2560.6,0.786]
[1726819449134,3.6102,2561.3,2560.8,0.39043]
[1726819449635,4.00057,2561.3,2560.7,3.59825]
[1726819449837,0.39039,2561.2,2560.6,1.17646]
[1726819450026,0.39039,2561.2,2560.6,4.38426]
[1726819450338,0.39039,2561.1,2560.6,3.9938]
[1726819450535,0.39039,2561.1,2560.6,0.786]
[1726819450733,0.39039,2561.1,2560.6,1.17647]
[1726819450939,3.6102,2561.3,2560.6,1.17647]
[1726819450940,3.2078,2561.0,2560.6,0.786]
[1726819451233,0.39047,2560.6,2560.5,2.5884]
[1726819451539,0.39049,2560.5,2560.0,0.39056]
[1726819451737,3.2078,2560.4,2560.0,0.39056]
[1726819452136,3.5983,2560.4,2560.0,0.39056]
[1726819452333,3.5983,2560.4,2559.9,0.39057]
[1726819453038,3.2078,2560.4,2560.0,0.39056]
[1726819453242,3.2078,2560.4,2559.9,0.39057]
[1726819453942,3.2078,2560.4,2559.8,3.2078]
[1726819454237,3.2078,2559.9,2558.6,3.2078]
[1726819454433,3.2078,2559.9,2558.9,0.3893]
[1726819454434,4.3828,2559.8,2558.9,0.3893]
[1726819454629,3.2078,2559.6,2558.9,3.5971]
[1726819454833,3.59842,2559.6,2558.9,0.78002]
[1726819455044,3.2078,2559.6,2558.9,0.78002]
[1726819455339,3.2078,2559.6,2558.9,0.3893]
[1726819455539,3.2078,2559.3,2558.9,0.3893]
[1726819456037,3.2078,2559.0,2558.1,3.2078]
[1726819456242,3.2078,2559.2,2558.4,3.2078]
[1726819456434,0.3998,2559.1,2558.2,0.7817]
[1726819456635,3.2078,2558.9,2558.2,0.3879]
[1726819456837,3.2078,2558.9,2558.3,0.78461]
[1726819457145,3.2078,2558.4,2557.0,3.2078]
[1726819457336,3.2078,2558.1,2557.3,3.2078]
[1726819457542,0.3998,2558.3,2557.3,3.2078]
[1726819457840,0.3998,2558.3,2557.1,0.3879]
[1726819457841,3.2078,2558.2,2557.5,3.59873]
[1726819458038,3.2078,2558.2,2557.5,3.2078]
[1726819458240,3.2078,2558.2,2557.5,0.39094]
[1726819458744,3.2078,2558.2,2557.6,0.39092]
[1726819459045,3.2078,2558.2,2557.5,3.59874]
[1726819459242,3.2078,2558.2,2557.5,3.2078]
[1726819459652,3.2078,2558.2,2557.8,0.39089]
[1726819459845,3.2078,2558.2,2557.9,0.4084]
[1726819460041,3.2078,2558.5,2557.9,0.4084]
[1726819460345,0.379,2558.8,2558.1,3.59865]
[1726819460541,3.2078,2558.6,2558.0,0.39086]
[1726819460741,3.2078,2558.6,2557.9,0.7858]
[1726819460935,3.2078,2558.6,2558.1,0.39085]
[1726819461142,3.2078,2558.6,2558.1,0.39084]
[1726819461343,3.2078,2558.3,2557.5,3.2078]
[1726819461644,3.2078,2558.3,2557.7,0.3909]
[1726819461940,3.2078,2558.3,2557.8,0.39089]
[1726819462238,4.2188,2558.7,2557.8,3.2078]
[1726819462444,0.39078,2558.6,2557.9,0.39087]
[1726819462637,3.2078,2558.5,2558.0,0.39086]
[1726819462836,3.2078,2558.5,2557.7,3.2078]
[1726819463046,3.2078,2558.5,2557.9,0.39087]
[1726819463242,3.2078,2558.5,2557.7,3.2078]
[1726819463445,3.2078,2558.5,2558.0,0.39086]
[1726819463846,3.2078,2558.3,2557.8,0.39089]
[1726819464046,3.2078,2558.4,2557.8,0.3909]
[1726819464246,3.2078,2558.4,2557.7,3.2078]
[1726819464539,3.2078,2557.8,2556.7,3.2078]
[1726819464744,0.97718,2558.0,2556.7,3.2078]
[1726819464745,3.2078,2557.5,2557.0,0.39101]
[1726819465239,3.2078,2557.2,2556.7,3.2078]
[1726819465439,3.2078,2557.2,2556.9,0.39102]
[1726819465647,3.2078,2557.2,2556.7,3.2078]
[1726819465836,3.2078,2557.5,2556.9,0.39103]
[1726819466034,3.2078,2557.5,2557.1,0.391]
[1726819466446,3.2078,2557.6,2557.2,0.39098]
[1726819466749,0.3949,2557.7,2556.7,3.2078]
[1726819467047,3.2078,2557.6,2557.2,0.39099]
[1726819467248,3.2078,2557.6,2557.1,0.391]
[1726819467552,3.2078,2557.3,2555.7,3.2078]
[1726819467738,3.2078,2557.0,2556.0,3.2078]
[1726819467942,0.39104,2556.9,2556.2,0.39113]
[1726819468137,3.2078,2556.7,2556.0,0.39117]
[1726819468447,3.2078,2556.4,2555.9,3.99568]
[1726819468646,3.2078,2556.4,2555.9,3.6045]
[1726819469050,3.2078,2556.4,2555.9,0.3967]
[1726819469353,3.59897,2556.1,2555.5,0.412]
[1726819469551,3.2078,2555.8,2555.2,3.5952]
[1726819469745,3.2078,2555.8,2555.3,0.39127]
[1726819469950,3.2078,2555.8,2555.2,3.2078]
[1726819470351,3.2078,2555.8,2555.0,0.3874]
[1726819470649,3.2078,2555.5,2555.0,0.77872]
[1726819471041,3.2078,2555.5,2555.0,0.3874]
[1726819471241,3.2078,2555.5,2555.0,0.77871]
[1726819471446,3.2078,2555.5,2555.0,0.3874]
[1726819471840,3.2078,2555.5,2555.1,0.3913]
[1726819472047,3.2078,2555.6,2555.1,0.3913]
[1726819472446,3.9136,2555.5,2554.9,3.2078]
[1726819472646,3.2078,2555.6,2554.9,3.2078]
[1726819472855,3.2078,2555.3,2554.9,3.2078]
[1726819473253,3.2078,2555.3,2555.1,0.3913]
[1726819473446,3.2078,2555.3,2554.9,3.2078]
[1726819473646,3.2078,2555.3,2555.0,0.39133]
[1726819473954,3.2078,2555.6,2555.0,0.39133]
[1726819474158,3.2078,2555.6,2555.1,0.39131]
[1726819474357,3.2078,2555.6,2554.9,3.2078]
[1726819474557,3.2078,2555.6,2555.1,0.3913]
[1726819474761,3.2078,2555.6,2554.9,3.2078]
[1726819475054,3.2078,2555.6,2555.1,0.3913]